bitfinex/quotes_SOLUSD_20250724
["timestamp","ask_amount","ask_price","bid_price","bid_amount"]
[1753370286341,5.24521374,190.65,190.6,0.7]
[1753370286556,12.95540816,190.63,190.61,41.24]
[1753370286773,13.65540816,190.62,190.49,5.2495003]
[1753370286947,12.95540816,190.57,190.53,41.24]
[1753370287260,26.7,190.62,190.54,12.95540816]
[1753370287461,12.95540816,190.6,190.54,12.95540816]
[1753370287770,0.7,190.62,190.56,13.01540816]
[1753370287771,12.95540816,190.62,190.56,13.01540816]
[1753370287970,18.35824809,190.65,190.58,12.95540816]
[1753370288140,18.35824809,190.65,190.59,12.95540816]
[1753370288347,5.24521374,190.65,190.6,12.95540816]
[1753370288546,5.24521374,190.65,190.61,0.7]
[1753370288759,12.95540816,190.67,190.62,0.7]
[1753370288960,0.03,190.69,190.64,12.95540816]
[1753370289171,18.22978335,190.69,190.64,0.7]
[1753370289375,12.95540816,190.66,190.63,41.24]
[1753370290257,0.7,190.68,190.63,41.24]
[1753370290478,12.95540816,190.66,190.63,41.24]
[1753370290960,5.24466355,190.67,190.63,41.24]
[1753370291162,12.95540816,190.64,190.56,0.34432314]
[1753370291367,12.95540816,190.61,190.57,41.24]
[1753370291763,0.7,190.66,190.57,41.94]
[1753370291989,12.95540816,190.62,190.57,41.94]
[1753370292483,12.95540816,190.6,190.57,41.24]
[1753370292677,12.95540816,190.59,190.56,0.06]
[1753370292855,5.24631446,190.61,190.56,0.76]
[1753370293052,18.20172262,190.61,190.56,0.76]
[1753370293255,12.95540816,190.6,190.56,0.06]
[1753370293663,12.95540816,190.59,190.56,0.06]
[1753370293884,12.95540816,190.58,190.56,0.06]
[1753370294065,12.95540816,190.57,190.56,0.06]
[1753370294379,13.65540816,190.57,190.56,0.06]
[1753370294581,18.9028238,190.57,190.56,0.06]
[1753370295082,19.18714694,190.57,190.56,1e-08]
[1753370296478,18.2028238,190.57,190.56,1e-08]
[1753370296885,18.9028238,190.57,190.56,1e-08]
[1753370297385,19.18714694,190.57,190.56,1e-08]
[1753370297685,5.94741564,190.57,190.56,1e-08]
[1753370297867,18.2028238,190.57,190.56,1e-08]
[1753370298072,8.7442,190.63,190.56,1e-08]
[1753370298275,8.7442,190.63,190.56,39.65540817]
[1753370298276,18.2014474,190.62,190.56,39.65540817]
[1753370298882,5.24603924,190.62,190.56,39.65540817]
[1753370299183,18.2014474,190.62,190.56,39.65540817]
[1753370299380,5.24603924,190.62,190.56,26.70000001]
[1753370299563,5.24603924,190.62,190.56,39.65540817]
[1753370299764,18.2014474,190.62,190.56,39.65540817]
[1753370300404,12.95540816,190.6,190.56,26.70000001]
[1753370300764,12.95540816,190.57,190.56,1e-08]
[1753370301491,13.65540816,190.57,190.56,1e-08]
[1753370301868,12.95540816,190.57,190.56,1e-08]
[1753370302064,13.65540816,190.57,190.56,1e-08]
[1753370302389,13.9397313,190.57,190.56,1e-08]
[1753370302891,19.18714694,190.57,190.56,1e-08]
[1753370303579,18.2028238,190.57,190.56,1e-08]
[1753370304909,5.24686499,190.59,190.56,1e-08]
[1753370305194,12.95540816,190.57,190.56,1e-08]
[1753370305391,18.20227315,190.59,190.56,1e-08]
[1753370305583,5.24686499,190.59,190.56,0.70000001]
[1753370306399,5.74727161,190.58,190.56,0.70000001]
[1753370306891,5.74714528,190.58,190.56,1e-08]
[1753370307393,12.95540816,190.57,190.56,1e-08]
[1753370307593,18.70255344,190.58,190.56,1e-08]
[1753370307890,0.5,190.58,190.56,0.69000001]
[1753370308065,5.7471403,190.58,190.56,1e-08]
[1753370308474,0.5,190.58,190.56,0.69000001]
[1753370308669,0.5,190.58,190.56,1e-08]
[1753370308887,0.5,190.58,190.57,0.69]
[1753370309278,5.24661673,190.6,190.57,0.69]
[1753370309601,18.20202489,190.6,190.56,41.22000001]
[1753370310275,18.20202489,190.6,190.56,41.91000001]
[1753370311595,12.95540816,190.59,190.56,41.22000001]
[1753370311996,18.20202489,190.6,190.56,41.91000001]
[1753370312203,12.95540816,190.59,190.56,41.91000001]
[1753370312385,5.24661673,190.6,190.56,41.91000001]
[1753370312581,13.80495649,190.63,190.56,41.91000001]
[1753370312582,5.2471403,190.58,190.56,41.91000001]
[1753370313000,12.95540816,190.61,190.57,0.69]
[1753370313171,12.95540816,190.62,190.57,0.69]
[1753370313375,5.24548887,190.64,190.58,0.69]
[1753370313586,18.20089703,190.64,190.58,13.64540816]
[1753370313792,12.95540816,190.62,190.58,0.69]
[1753370313982,12.95540816,190.6,190.56,41.22000001]
[1753370314190,12.95540816,190.6,190.56,0.69000001]
[1753370314394,19.04921106,190.64,190.57,41.22]
[1753370314577,19.04921106,190.64,190.57,41.91]
[1753370314776,12.95540816,190.63,190.57,41.91]
[1753370314979,12.95540816,190.62,190.57,41.91]
[1753370315191,8.48491407,190.61,190.57,41.91]
[1753370315502,5.24498193,190.66,190.6,8.48491407]
[1753370315709,8.48491407,190.64,190.61,0.69]
[1753370315877,8.48491407,190.64,190.62,41.22]
[1753370316082,8.48491407,190.65,190.62,41.22]
[1753370316303,5.24498193,190.66,190.62,41.22]
[1753370316478,8.48491407,190.65,190.62,41.22]
[1753370316680,5.24548887,190.64,190.62,41.22]
[1753370317000,5.24527032,190.65,190.62,41.22]
[1753370317200,13.73018439,190.65,190.62,41.91]
[1753370317402,5.24527032,190.65,190.63,0.69]
[1753370317608,5.2443885,190.68,190.63,0.69]
[1753370317913,8.48491407,190.67,190.64,0.69]
[1753370318085,13.72930257,190.68,190.64,0.69]
[1753370318279,8.48491407,190.65,190.62,41.22]
[1753370318479,5.2443885,190.68,190.63,0.69]
[1753370318700,5.2443885,190.68,190.63,41.2]
[1753370318701,13.73060862,190.64,190.63,41.2]
[1753370318887,5.24569455,190.64,190.63,41.2]
[1753370319078,13.73016509,190.65,190.63,41.2]
[1753370319280,5.2443885,190.68,190.64,0.69]
[1753370319489,8.48491407,190.67,190.63,41.2]
[1753370319683,8.48491407,190.64,190.6,26.0]
[1753370319991,0.69,190.67,190.56,17.47468398]
[1753370320320,8.48491407,190.61,190.57,41.2]
[1753370320603,18.35535976,190.68,190.59,25.26959804]
[1753370320604,8.48491407,190.65,190.59,25.26959804]
[1753370320809,5.24548887,190.64,190.59,25.26959804]
[1753370321120,5.24548887,190.64,190.6,0.69]
[1753370321286,13.73017163,190.65,190.61,41.89]
[1753370321799,13.73017163,190.65,190.62,0.69]
[1753370322115,13.73017163,190.65,190.63,0.69]
[1753370322285,5.2443885,190.68,190.63,9.17491407]
[1753370322487,0.03,190.69,190.64,25.95959804]
[1753370322705,0.03,190.69,190.66,25.26959804]
[1753370322942,0.03,190.69,190.67,8.48491407]
[1753370323087,0.03,190.69,190.68,26.0]
[1753370323286,0.03,190.69,190.68,26.69]
[1753370323907,0.03,190.69,190.68,51.95959804]
[1753370324114,8.51491407,190.69,190.66,42.78468397]
[1753370324407,8.51491407,190.69,190.67,26.0]
[1753370324408,0.03,190.69,190.67,26.0]
[1753370324706,0.03,190.69,190.64,0.69]
[1753370324707,8.48491407,190.68,190.64,0.69]
[1753370324906,8.48491407,190.66,190.65,41.18]
[1753370325102,19.07439718,190.69,190.65,41.87]
[1753370325103,13.75902755,190.69,190.65,41.87]
[1753370325291,5.27411348,190.69,190.66,0.69]
[1753370325498,5.27411348,190.69,190.67,0.69]
[1753370325691,0.03,190.69,190.68,0.69]
[1753370325889,0.03,190.69,190.68,26.69]
[1753370326096,0.03,190.69,190.68,51.95959804]
[1753370326406,0.03,190.69,190.68,0.69]
[1753370327408,0.03,190.69,190.68,41.85]
[1753370327907,0.03,190.69,190.68,0.69]
[1753370328215,8.51491407,190.69,190.63,8.48491407]
[1753370328386,0.03,190.69,190.64,41.85]
[1753370328592,0.03,190.69,190.65,0.69]
[1753370328785,0.03,190.69,190.66,41.16]
[1753370328993,0.03,190.69,190.66,41.85]
[1753370329714,0.03,190.69,190.66,0.69]
[1753370329917,0.03,190.69,190.67,41.16]
[1753370330614,0.03,190.69,190.67,41.85]
[1753370330924,11.38701407,190.68,190.56,1e-08]
[1753370331089,8.48491407,190.63,190.57,41.16]
[1753370331285,8.48491407,190.65,190.59,8.48491407]
[1753370331509,18.35632243,190.67,190.61,8.48491407]
[1753370331824,18.35632243,190.67,190.62,8.48491407]
[1753370332199,5.24466355,190.67,190.63,9.17491407]
[1753370332514,5.24466355,190.67,190.61,41.14]
[1753370332697,5.24466355,190.67,190.62,8.48491407]
[1753370333213,5.24466355,190.67,190.62,0.69]
[1753370333408,5.24466355,190.67,190.63,41.14]
[1753370333789,13.11135025,190.68,190.63,50.31491407]
[1753370333996,5.27411348,190.69,190.64,9.17491407]
[1753370334213,5.27411348,190.69,190.65,0.69]
[1753370334522,18.38439718,190.69,190.65,0.69]
[1753370334693,18.38439718,190.69,190.64,8.48491407]
[1753370334896,18.38439718,190.69,190.64,9.17491407]
[1753370335616,18.38439718,190.69,190.59,0.28432314]
[1753370335821,18.38439718,190.69,190.64,8.48491407]
[1753370336121,18.38439718,190.69,190.65,41.14]
[1753370336895,18.38439718,190.69,190.65,50.31491407]
[1753370337096,18.38439718,190.69,190.66,0.69]
[1753370337719,13.1402837,190.69,190.65,41.14]
[1753370337897,8.48491407,190.66,190.57,9.17491407]
[1753370338097,8.48491407,190.63,190.58,41.12]
[1753370338321,0.71,190.66,190.6,8.48491407]
[1753370338322,8.48491407,190.66,190.6,8.48491407]
[1753370338930,8.48491407,190.67,190.61,9.17491407]
[1753370339121,8.48491407,190.68,190.62,49.60491407]
[1753370339928,5.24466355,190.67,190.63,8.48491407]
[1753370340228,5.24466355,190.67,190.64,0.69]
[1753370340431,8.48491407,190.65,190.58,26.0]
[1753370340611,8.48491407,190.65,190.56,1e-08]
[1753370340612,8.48491407,190.59,190.56,1e-08]
[1753370340815,8.48491407,190.57,190.56,1e-08]
[1753370341020,8.48491407,190.58,190.56,1e-08]
[1753370341247,35.19491407,190.59,190.56,1e-08]
[1753370341528,9.4373,190.64,190.57,9.17491407]
[1753370341744,5.24631446,190.61,190.56,8.48491408]
[1753370341946,8.48491407,190.67,190.6,8.48491407]
[1753370342122,5.24466355,190.67,190.62,8.48491407]
[1753370342323,5.24466355,190.67,190.62,9.17491407]
[1753370342725,8.48491407,190.63,190.56,8.48491408]
[1753370342958,8.48491407,190.57,190.56,1e-08]
[1753370343334,8.88491407,190.57,190.56,1e-08]
[1753370343656,8.48491407,190.59,190.56,1e-08]
[1753370343954,2.3405,190.61,190.56,1e-08]
[1753370343955,13.73150378,190.6,190.56,1e-08]
[1753370344125,26.0,190.62,190.56,1e-08]
[1753370344126,8.48491407,190.62,190.57,0.69]
[1753370344462,8.48491407,190.64,190.58,0.69]
[1753370345126,8.48491407,190.65,190.6,8.48491407]
[1753370345449,5.24469533,190.67,190.62,8.48491407]
[1753370345656,13.7296094,190.67,190.63,0.69]
[1753370346028,13.72932014,190.68,190.64,0.69]
[1753370346437,0.03,190.69,190.65,0.69]
[1753370346648,0.03,190.69,190.66,41.1]
[1753370347335,0.03,190.69,190.67,0.69]
[1753370347728,0.03,190.69,190.68,0.69]
[1753370348358,0.03,190.69,190.66,41.1]
[1753370348568,0.03,190.69,190.67,0.69]
[1753370349246,0.03,190.69,190.64,26.69]
[1753370349553,0.03,190.69,190.67,41.79]
[1753370350062,0.03,190.69,190.68,41.1]
[1753370350228,8.51491407,190.69,190.67,41.1]
[1753370350758,0.03,190.69,190.67,41.1]
[1753370351059,0.03,190.69,190.67,41.79]
[1753370351348,0.03,190.69,190.68,41.1]
[1753370351933,0.03,190.69,190.68,41.79]
[1753370353133,0.03,190.69,190.68,41.1]
[1753370354469,0.03,190.69,190.68,41.08]
[1753370354634,0.03,190.69,190.68,41.77]
[1753370355963,0.03,190.69,190.65,8.48491407]
[1753370356132,0.03,190.69,190.66,41.06]
[1753370356336,0.03,190.69,190.66,41.75]
[1753370356536,0.03,190.69,190.67,0.69]
[1753370357633,0.03,190.69,190.68,0.69]
[1753370358160,8.51491407,190.69,190.68,41.06]
[1753370358330,8.51491407,190.69,190.57,6.2557]
[1753370358539,8.48491407,190.61,190.57,0.69]
[1753370358840,6.8658,190.68,190.6,8.48491407]
[1753370358841,8.48491407,190.66,190.6,8.48491407]
[1753370359159,8.48491407,190.68,190.62,8.48491407]
[1753370359461,8.48491407,190.66,190.63,41.06]
[1753370360032,8.48491407,190.64,190.6,0.69]
[1753370360253,0.71,190.66,190.62,41.06]
[1753370360556,8.48491407,190.63,190.62,41.06]
[1753370360770,0.71,190.65,190.62,41.06]
[1753370360771,8.48491407,190.64,190.62,41.06]
[1753370360938,8.48491407,190.65,190.62,41.06]
[1753370361533,18.35632243,190.67,190.62,41.06]
[1753370361534,5.24548887,190.64,190.62,41.75]
[1753370363454,5.24521374,190.65,190.62,41.75]
[1753370363657,5.24521374,190.65,190.62,41.06]
[1753370363848,8.48491407,190.63,190.62,41.06]
[1753370364161,43.67982814,190.63,190.56,1e-08]
[1753370364344,8.48491407,190.57,190.56,1e-08]
[1753370364659,2.3059,190.61,190.56,8.48491408]
[1753370364847,8.48491407,190.6,190.56,1e-08]
[1753370365452,5.24686499,190.59,190.56,1e-08]
[1753370365655,5.24686499,190.59,190.57,0.69]
[1753370366260,13.73177906,190.59,190.56,41.04000001]
[1753370366467,8.48491407,190.58,190.56,41.04000001]
[1753370366836,5.95686499,190.59,190.56,41.04000001]
[1753370367457,5.24741564,190.57,190.56,41.04000001]
[1753370367837,5.24719823,190.58,190.56,41.71000001]
[1753370368043,5.24719823,190.58,190.56,41.04000001]
[1753370369552,8.48491407,190.59,190.56,41.04000001]
[1753370370262,18.363064,190.6,190.56,41.04000001]
[1753370370567,8.48491407,190.59,190.56,41.04000001]
[1753370370762,5.24658971,190.6,190.57,9.15491407]
[1753370370941,5.24658971,190.6,190.58,0.67]
[1753370371140,5.24658971,190.6,190.56,50.19491408]
[1753370371343,8.48491407,190.63,190.58,8.48491407]
[1753370371557,13.73067811,190.63,190.56,41.04000001]
[1753370371750,13.73067811,190.63,190.57,8.48491407]
[1753370372155,5.24521374,190.65,190.61,8.48491407]
[1753370372350,5.24521374,190.65,190.62,41.02]
[1753370372557,5.24521374,190.65,190.62,49.50491407]
[1753370372875,5.24521374,190.65,190.62,41.02]
[1753370373370,13.7298527,190.66,190.62,41.02]
[1753370374365,8.48491407,190.64,190.58,34.48491407]
[1753370374568,18.35728521,190.66,190.57,41.0]
[1753370374569,8.48491407,190.59,190.57,41.0]
[1753370374869,16.78468397,190.65,190.57,41.0]
[1753370375070,8.48491407,190.6,190.57,41.0]
[1753370375270,5.24686499,190.59,190.57,41.0]
[1753370376372,13.73177906,190.59,190.56,1e-08]
[1753370376581,8.48491407,190.57,190.56,1e-08]
[1753370377478,13.73232971,190.57,190.56,1e-08]
[1753370377774,5.24741564,190.57,190.56,1e-08]
[1753370378079,5.24720503,190.58,190.56,1e-08]
[1753370378574,5.24720503,190.58,190.56,0.67000001]
[1753370379158,5.24720503,190.58,190.56,1e-08]
[1753370380179,9.19491407,190.57,190.56,41.00000001]
[1753370380361,8.48491407,190.57,190.56,41.00000001]
[1753370380563,13.7321191,190.58,190.56,41.00000001]
[1753370381081,5.24720503,190.58,190.57,0.06]
[1753370381261,13.7321191,190.58,190.57,0.06]
[1753370381456,14.4421191,190.58,190.57,0.06]
[1753370381869,17.06900711,190.57,190.56,1e-08]
[1753370382078,26.26392118,190.57,190.56,1e-08]
[1753370382381,8.48491407,190.57,190.56,1e-08]
[1753370383386,13.73232971,190.57,190.56,1e-08]
[1753370384975,14.44232971,190.57,190.56,1e-08]
[1753370386486,13.73232971,190.57,190.56,1e-08]
[1753370386780,14.44232971,190.57,190.56,1e-08]
[1753370388563,14.72665285,190.57,190.56,1e-08]
[1753370389275,31.51133682,190.57,190.56,1e-08]
[1753370389478,30.53280126,190.53,190.52,1e-08]
[1753370389657,39.01771533,190.53,190.52,1e-08]
[1753370389856,39.72771533,190.53,190.52,1e-08]
[1753370390953,40.01203847,190.53,190.52,1e-08]
[1753370391778,48.49695254,190.53,190.52,1e-08]
[1753370391978,80.95203847,190.53,190.52,1e-08]
[1753370392981,83.6801415,190.53,190.52,1e-08]
[1753370393463,92.16505557,190.53,190.52,1e-08]
[1753370394480,92.16505557,190.53,190.32,10.0]
[1753370394481,16.78468397,190.42,190.37,0.67]
[1753370394681,8.48491407,190.38,190.29,4.15948556]
[1753370394870,8.48491407,190.38,190.28,6.1578]
[1753370394871,8.48491407,190.38,190.34,0.67]
[1753370395060,8.48491407,190.41,190.35,8.48491407]
[1753370395267,8.48491407,190.4,190.36,0.67]
[1753370395579,16.78468397,190.42,190.36,0.67]
[1753370395791,8.48491407,190.39,190.33,0.67]
[1753370396086,8.48491407,190.39,190.33,9.15491407]
[1753370396383,5.25265258,190.38,190.34,0.67]
[1753370396574,13.73756665,190.38,190.35,0.67]
[1753370396773,13.73756665,190.38,190.31,26.0]
[1753370396774,13.73756665,190.38,190.36,0.67]
[1753370397080,8.48491407,190.42,190.37,0.67]
[1753370397259,40.92,190.44,190.38,0.67]
[1753370397260,8.48491407,190.41,190.38,0.67]
[1753370397656,40.92,190.44,190.39,0.68]
[1753370397856,40.92,190.44,190.4,0.68]
[1753370397857,8.48491407,190.43,190.4,0.68]
[1753370398084,8.48491407,190.41,190.38,0.68]
[1753370398283,8.48491407,190.4,190.34,8.48491407]
[1753370398482,13.73704644,190.4,190.35,0.68]
[1753370398672,8.48491407,190.4,190.35,5.93342857]
[1753370398983,66.92,190.45,190.36,0.68]
[1753370399184,66.92,190.45,190.36,9.16491407]
[1753370399185,8.48491407,190.42,190.36,9.16491407]
[1753370399482,8.48491407,190.42,190.35,0.14216157]
[1753370399483,0.5,190.39,190.37,0.68]
[1753370399783,8.48491407,190.42,190.37,0.68]
[1753370400089,5.25099768,190.44,190.38,0.68]
[1753370400090,8.48491407,190.41,190.38,0.68]
[1753370400380,26.0,190.47,190.39,9.16491407]
[1753370400582,8.48491407,190.45,190.4,0.68]
[1753370400886,8.48491407,190.43,190.4,0.68]
[1753370401065,8.48491407,190.42,190.4,0.68]
[1753370401255,8.48491407,190.41,190.37,0.68]
[1753370401457,8.48491407,190.38,190.34,0.68]
[1753370401783,8.48491407,190.38,190.35,0.68]
[1753370402171,8.48491407,190.38,190.36,0.68]
[1753370402373,13.73771553,190.38,190.36,0.68]
[1753370402864,8.48491407,190.37,190.33,41.62]
[1753370403186,5.25280146,190.38,190.34,0.68]
[1753370403387,0.66,190.37,190.31,0.68]
[1753370403562,5.25280146,190.38,190.31,9.16491407]
[1753370403763,40.92,190.41,190.35,8.48491407]
[1753370403980,8.48491407,190.4,190.36,0.68]
[1753370404179,8.48491407,190.39,190.36,0.68]
[1753370404483,8.48491407,190.37,190.3,34.48491407]
[1753370404780,5.25265258,190.38,190.3,26.68]
[1753370404993,8.48491407,190.36,190.31,0.68]
[1753370405282,8.48491407,190.35,190.32,0.68]
[1753370405509,5.25265258,190.38,190.32,0.68]
[1753370405660,8.48491407,190.37,190.32,9.16491407]
[1753370405863,8.48491407,190.36,190.33,0.68]
[1753370406075,0.5,190.4,190.34,9.16491407]
[1753370406278,8.48491407,190.38,190.34,26.68]
[1753370406670,8.48491407,190.38,190.35,0.68]
[1753370407074,5.2523767,190.39,190.32,0.68]
[1753370407075,8.48491407,190.37,190.32,0.68]
[1753370407271,8.48491407,190.36,190.33,0.68]
[1753370407487,5.2523767,190.39,190.33,0.68]
[1753370407806,8.48491407,190.37,190.33,0.68]
[1753370407965,8.48491407,190.36,190.33,0.68]
[1753370408474,8.48491407,190.4,190.34,0.96432314]
[1753370408778,8.48491407,190.4,190.35,0.68]
[1753370409172,5.251825,190.41,190.35,0.68]
[1753370409372,5.25072197,190.45,190.39,8.48491407]
[1753370409598,8.48491407,190.42,190.39,0.68]
[1753370409778,8.48491407,190.41,190.37,0.68]
[1753370410410,8.48491407,190.41,190.38,0.68]
[1753370410583,42.78468397,190.47,190.38,9.16491407]
[1753370410584,13.73628714,190.43,190.38,9.16491407]
[1753370410894,13.73628714,190.43,190.39,0.68]
[1753370411074,13.73628714,190.43,190.38,8.48491407]
[1753370411267,62.75074359,190.48,190.4,0.68]
[1753370411471,8.48491407,190.45,190.4,0.68]
[1753370411684,8.48491407,190.45,190.41,0.68]
[1753370411881,62.75074359,190.48,190.41,0.68]
[1753370411882,8.48491407,190.44,190.41,0.68]
[1753370412480,5.25127343,190.43,190.41,0.68]
[1753370412675,5.25127343,190.43,190.38,8.76923721]
[1753370412676,8.48491407,190.42,190.38,0.68]
[1753370412887,8.48491407,190.4,190.35,0.68]
[1753370413078,8.48491407,190.39,190.36,0.68]
[1753370413282,8.48491407,190.37,190.33,0.68]
[1753370413475,8.48491407,190.36,190.33,0.68]
[1753370413673,8.48491407,190.36,190.31,40.88]
[1753370413674,0.66,190.42,190.34,0.68]
[1753370413997,8.48491407,190.37,190.33,0.68]
[1753370414180,8.48491407,190.37,190.34,0.68]
[1753370414373,8.48491407,190.38,190.34,0.68]
[1753370414895,8.48491407,190.37,190.34,0.68]
[1753370415096,8.48491407,190.37,190.31,39.73949595]
[1753370415398,8.48491407,190.38,190.35,0.68]
[1753370416093,8.48491407,190.37,190.31,35.16491407]
[1753370416283,0.66,190.4,190.31,34.48491407]
[1753370416478,8.48491407,190.38,190.32,9.16491407]
[1753370416709,8.48491407,190.38,190.33,0.68]
[1753370416875,8.48491407,190.38,190.34,0.68]
[1753370417075,13.1276141,190.44,190.35,8.48491407]
[1753370417279,8.48491407,190.4,190.35,0.68]
[1753370417492,8.48491407,190.39,190.35,0.68]
[1753370418082,8.48491407,190.4,190.36,0.68]
[1753370418485,5.2523767,190.39,190.36,0.68]
[1753370418886,13.73729077,190.39,190.33,8.48491407]
[1753370419185,8.48491407,190.38,190.34,0.68]
[1753370420075,13.73761453,190.38,190.34,0.68]
[1753370421188,8.48491407,190.37,190.32,0.28432314]
[1753370421503,8.48491407,190.33,190.31,41.54]
[1753370421703,8.48491407,190.32,190.31,40.86]
[1753370421904,13.7392226,190.32,190.26,0.68]
[1753370422088,8.48491407,190.31,190.26,0.68]
[1753370422279,8.48491407,190.31,190.26,9.16491407]
[1753370422479,8.48491407,190.3,190.27,0.68]
[1753370422875,5.25430853,190.32,190.24,0.06]
[1753370422876,8.48491407,190.28,190.24,0.06]
[1753370423083,0.66,190.29,190.24,0.06]
[1753370423084,8.48491407,190.25,190.24,0.06]
[1753370423382,8.48491407,190.26,190.24,0.06]
[1753370423580,8.48491407,190.27,190.24,0.74]
[1753370423784,8.48491407,190.25,190.24,0.06]
[1753370423989,13.74115585,190.25,190.24,0.06]
[1753370424304,14.40115585,190.25,190.24,0.06]
[1753370424813,26.0,190.22,190.18,0.1]
[1753370424992,33.75451211,190.19,190.18,0.1]
[1753370425306,40.84,190.22,190.18,0.1]
[1753370425307,0.66,190.21,190.18,0.1]
[1753370425490,40.84,190.22,190.18,0.1]
[1753370425690,8.48491407,190.19,190.18,0.1]
[1753370426001,8.48491407,190.22,190.19,0.68]
[1753370426204,8.48491407,190.2,190.18,0.1]
[1753370426408,34.03883525,190.19,190.18,0.1]
[1753370426587,34.41451211,190.19,190.18,0.1]
[1753370426913,26.0,190.12,190.04,0.68]
[1753370427089,26.0,190.12,190.03,4.19244301]
[1753370427090,8.48491407,190.08,190.03,0.68]
[1753370427406,8.48491407,190.08,190.02,13.74746294]
[1753370427407,26.66,190.12,190.02,5.26258701]
[1753370427605,26.66,190.12,190.03,8.48491407]
[1753370427606,8.48491407,190.09,190.03,8.48491407]
[1753370427806,26.66,190.12,190.04,8.48491407]
[1753370428044,8.48491407,190.1,190.02,5.26258701]
[1753370428302,8.48491407,190.1,190.04,8.48491407]
[1753370428509,8.48491407,190.09,190.01,25.6789872]
[1753370428712,8.48491407,190.06,190.01,16.26356382]
[1753370429083,8.48491407,190.07,190.01,8.48491407]
[1753370429276,18.41042337,190.11,190.0,8.0]
[1753370429498,8.48491407,190.08,190.0,13.93305884]
[1753370429688,8.48491407,190.07,190.01,8.48491407]
[1753370430018,8.48491407,190.07,190.0,8.67]
[1753370430019,5.26205009,190.04,190.0,8.0]
[1753370430178,8.48491407,190.01,190.0,8.0]
[1753370430513,9.14491407,190.01,190.0,8.0]
[1753370430714,8.48491407,190.02,190.0,8.0]
[1753370430906,8.48491407,190.01,190.0,8.0]
[1753370431207,8.48491407,190.03,190.0,8.0]
[1753370431707,8.48491407,190.01,190.0,8.0]
[1753370431919,5.92149636,190.06,190.0,8.0]
[1753370432087,8.48491407,190.07,190.01,9.15491407]
[1753370432288,8.48491407,190.07,190.01,0.95432314]
[1753370432502,8.48491407,190.05,190.0,8.0]
[1753370432708,0.66,190.07,190.0,8.06]
[1753370432908,8.48491407,190.05,190.0,8.06]
[1753370433111,0.66,190.07,190.0,8.06]
[1753370433318,8.48491407,190.07,190.01,8.76923721]
[1753370433698,0.66,190.1,190.04,8.48491407]
[1753370433902,26.0,190.11,190.05,13.74664838]
[1753370433903,8.48491407,190.11,190.05,13.74664838]
[1753370434210,5.91959623,190.13,190.05,5.26173431]
[1753370434512,8.48491407,190.09,190.02,0.67]
[1753370434720,8.48491407,190.03,190.0,8.06]
[1753370434893,8.48491407,190.01,190.0,8.06]
[1753370435099,9.14491407,190.01,190.0,8.06]
[1753370435292,0.66,190.01,190.0,8.06]
[1753370435602,0.66,190.08,190.0,8.06]
[1753370435808,8.48491407,190.11,190.05,8.48491407]
[1753370436012,8.48491407,190.12,190.06,13.74641043]
[1753370436212,3.0701,190.14,190.07,8.48491407]
[1753370436398,5.91846903,190.17,190.09,8.48491407]
[1753370436588,8.48491407,190.16,190.09,0.67]
[1753370436917,8.48491407,190.16,190.1,8.48491407]
[1753370437106,40.84,190.18,190.11,8.48491407]
[1753370437107,8.48491407,190.18,190.11,8.48491407]
[1753370437313,5.25791195,190.19,190.12,8.48491407]
[1753370437620,8.48491407,190.17,190.11,0.67]
[1753370437798,8.48491407,190.17,190.11,9.15491407]
[1753370437995,5.25791195,190.19,190.11,9.15491407]
[1753370437996,8.48491407,190.19,190.14,0.28432314]
[1753370438801,9.14491407,190.18,190.1,5.26012718]
[1753370439000,9.14491407,190.18,190.09,16.78468397]
[1753370439001,0.66,190.17,190.09,0.28432314]
[1753370439191,0.66,190.17,190.08,8.76923721]